Cogmind - Beta 16 @@@ ROGUE MODE // 2026.01.12 @ 10:57:00 Player: phosphophyllite Result: Destroyed by G-47 Trooper with Particle Gun Performance ------------- Evolutions (3) 1500 Regions Visited (4) 800 Robots Destroyed (71) 355 Value Destroyed (1278) 1278 Prototype IDs (0) 0 Alien Tech Used (0) 0 Bonus (0) 0 TOTAL SCORE: 3933 Bonus ------- None Cogmind --------- Core Integrity 0/700 Matter 56/300 Energy 60/100 System Corruption 1% Temperature Cool (27) Movement Core (700) Ox13 Location -7/Factory Parts ------- > --- POWER (2) -------- (None) > --- PROPULSION (4) --- (None) > --- UTILITY (5) ------ High-capacity Storage Unit Machine Analyzer > --- WEAPON (2) ------- (None) > --- INVENTORY (20) --- Micro Nuclear Core Titanium Leg Titanium Leg Improved Titanium Leg Improved Titanium Leg Targeting Computer Improved Utility Shielding Shock Absorption System Improved Field Recycling Unit (0) Rocket Launcher Rocket Launcher Rocket Launcher Mini Grenade Launcher Mini Grenade Launcher Mini Grenade Launcher Mini Grenade Launcher Peak State ------------ > --- POWER ------------ Micro Nuclear Core Micro Nuclear Core > --- PROPULSION ------- Titanium Leg Titanium Leg Titanium Leg Improved Titanium Leg > --- UTILITY ---------- High-capacity Storage Unit Machine Analyzer Improved Targeting Computer Advanced ECM Suite Hardened Medium Armor Plating > --- WEAPON ----------- Mini Grenade Launcher Mini Grenade Launcher > --- INVENTORY -------- Micro Nuclear Core Titanium Leg Titanium Leg Improved Titanium Leg Improved Titanium Leg Targeting Computer Improved Utility Shielding Shock Absorption System Improved Field Recycling Unit Rocket Launcher Rocket Launcher Rocket Launcher Mini Grenade Launcher Mini Grenade Launcher Mini Grenade Launcher Mini Grenade Launcher [Rating: 42] Favorites ----------- Power Light Nuclear Core Engine Ion Engine Power Core Light Nuclear Core Propulsion Titanium Leg Treads Light Treads Leg Titanium Leg Flight Unit Flight Unit Utility High-capacity Storage Unit Device Tractor Beam Storage High-capacity Storage Unit Processor Terrain Scan Processor Protection Hardened Medium Armor Plating Weapon Mini Grenade Launcher Ballistic Gun Light Assault Rifle Ballistic Cannon Improved Light Cannon Launcher Mini Grenade Launcher Build | -11 -10 -9 -8 -7 ------- Run | Yrd Mat Mat Mat Fac Slots Evolved 6 | . . 2 2 2 Power 1 | . . . 1 . Propulsion 2 | . . 2 . . Utility 3 | . . . 1 2 Weapon . | . . . . . Parts Attached 42 | 7 12 11 5 7 Power 7 | 1 1 . 3 2 Engine 2 | 1 . . 1 . Core 5 | . 1 . 2 2 Reactor . | . . . . . Propulsion 12 | 2 2 7 . 1 Treads 4 | . 2 2 . . Leg 7 | 2 . 4 . 1 Wheel . | . . . . . Hover . | . . . . . Flight 1 | . . 1 . . Utility 13 | 2 3 2 2 4 Device 3 | . . . . 3 Storage 4 | 2 1 1 . . Processor 5 | . 2 1 2 . Hackware . | . . . . . Protection 1 | . . . . 1 Artifact . | . . . . . Weapon 10 | 2 6 2 . . Energy Gun . | . . . . . Energy Cannon . | . . . . . Ballistic Gun 2 | 2 . . . . Ballistic Cannon 4 | . 4 . . . Launcher 4 | . 2 2 . . Special Weapon . | . . . . . Impact Weapon . | . . . . . Slashing Weapon . | . . . . . Piercing Weapon . | . . . . . Special Melee Weapon . | . . . . . Unidentified Prototypes . | . . . . . Parts Lost 15 | . . . . 15 Power 4 | . . . . 4 Propulsion 5 | . . . . 5 Utility 4 | . . . . 4 Weapon 2 | . . . . 2 Highest Loss Streak 14 | . . . . 14 To Critical Strikes . | . . . . . Average Backups 14 | 3 7 16 19 18 Power 2 | 1 . 2 2 2 Propulsion 1 | 1 1 . 2 4 Utility 4 | . 1 6 7 4 Weapon 5 | . 3 6 7 7 Tool/Special . | . . . . . Unused Backups 40 | . 5 8 3 24 Power 9 | . . 3 2 4 Propulsion 10 | . 2 1 . 7 Utility 12 | . . 4 1 7 Weapon 7 | . 2 . . 5 Tool/Special 2 | . 1 . . 1 Average Slot Usage (%) 94 | . 97 93 99 94 Engine 2 | . 10 . 2 . Core 10 | . 3 11 15 14 Treads 12 | . 18 21 . . Leg 19 | . 9 16 36 27 Device 2 | . . . . 10 Storage 10 | . 14 11 9 7 Processor 12 | . 12 11 18 14 Ballistic Gun 1 | . 7 . . . Ballistic Cannon 10 | . 19 14 . . Launcher 8 | . . 7 18 14 Peak Build Rating 42 | 7 13 24 31 42 Average Rating 21 | 4 10 18 29 35 On Entrance 14 | . 6 13 24 31 Avg Prop Armor Cover (%) 1 | . . 1 . . Naked Turns . | . . . . . Heaviest Build 65 | 12 18 53 54 65 Greatest Support 80 | 20 40 80 68 71 Greatest Overweight (x) 17 | . 5 17 . 2 Average Overweight (x) . | . . . . . Largest Inventory Capacity 25 | 8 25 20 20 20 Average Capacity 17 | 5 8 19 20 20 Most Carried 20 | 7 8 20 20 20 Average Carried 15 | 3 7 16 19 18 Final Capacity 20 | 8 8 20 20 20 Final Carried 20 | 7 8 20 20 16 Class Distribution -------------------- 100% | Mutant Dominant Class ---------------- Mutant | -10/Materials Mutant | -9/Materials Mutant | -8/Materials Mutant | -7/Factory Resources | -11 -10 -9 -8 -7 ----------- Run | Yrd Mat Mat Mat Fac Matter Collected 1768 | 196 429 1082 19 42 Remotely 42 | . . . . 42 Salvage Created 1521 | 61 507 751 124 78 Parts 108 | 3 31 49 14 11 Haulers Intercepted 3 | . 1 2 . . Recyclers Shooed 8 | . 1 6 1 . Parts Field Recycled . | . . . . . Retrieved Matter . | . . . . . Parts Self-Destructed . | . . . . . Prevented . | . . . . . Parts Restored . | . . . . . Kills | -11 -10 -9 -8 -7 ------- Run | Yrd Mat Mat Mat Fac Combat Hostiles Destroyed 36 | . 14 14 5 3 Guns 3 | . 3 . . . Cannons 22 | . 11 11 . . AOE 11 | . . 3 5 3 Classes Destroyed 13 | 1 7 3 . 2 Worker 11 | . 3 4 2 2 Builder 8 | . 1 5 . 2 Tunneler 1 | . 1 . . . Hauler 3 | . 1 2 . . Recycler 7 | 1 1 5 . . Watcher 5 | . 1 3 1 . Swarmer 15 | . 6 6 3 . Grunt 14 | . 8 4 2 . Brawler 1 | . . 1 . . Duelist 1 | . . 1 . . Sentry 2 | . . 2 . . Hunter 1 | . . . . 1 Programmer 2 | . . . . 2 Best Kill Streak 7 | 1 7 4 4 3 Combat Bots Only 5 | . 5 4 3 1 Max Kills in Single Turn 3 | 1 2 2 2 3 Gunslinging 1 | . 1 . . . Exploded 2 | . . 1 2 1 Melee . | . . . . . Uniques/NPCs Destroyed . | . . . . . Combat | -11 -10 -9 -8 -7 -------- Run | Yrd Mat Mat Mat Fac Hostile Shots Fired 532 | . 103 39 5 385 Missed 201 | . 29 10 1 161 Hits 331 | . 74 29 4 224 Melee 3 | . . 3 . . Projectile 328 | . 74 26 4 224 Critical Strikes 3 | . . . . 3 Damage Taken 3508 | . 719 544 33 2212 Core 935 | . 132 93 . 710 Absorbed by Shields . | . . . . . Core Remaining (%) 80 | 100 47 76 100 . Volleys Fired 142 | 6 45 79 6 6 Largest 2 | 2 2 2 2 2 Hottest 66 | 40 66 66 60 60 Shots Fired 284 | 12 90 158 12 12 Gun 36 | 12 24 . . . Cannon 200 | . 66 134 . . Launcher 48 | . . 24 12 12 Special . | . . . . . Kinetic 236 | 12 90 134 . . Thermal . | . . . . . Explosive 48 | . . 24 12 12 Electromagnetic . | . . . . . Robot Hit Streak 8 | 7 8 8 3 4 Robot Miss Streak 5 | 1 4 5 1 2 Penetration Max . | . . . . . Secondary Targets 1 | . 1 . . . Max Gunslinging Chain 1 | . 1 . . . Shots Hit Robots 146 | 8 47 81 4 6 Core Hits 90 | 2 26 38 11 13 Critical Kills . | . . . . . Critical Parts Destroyed 1 | . 1 . . . Critical Strikes 5 | . 2 3 . . Destroy 1 | . 1 . . . Blast 4 | . 1 3 . . Melee Attacks . | . . . . . Impact . | . . . . . Slashing . | . . . . . Piercing . | . . . . . Sneak Attacks . | . . . . . Combat Hostiles . | . . . . . Follow-up Attacks . | . . . . . Damage Inflicted 4374 | 68 956 2375 427 548 Guns 183 | 68 115 . . . Cannons 2439 | . 841 1598 . . Explosions 1752 | . . 777 427 548 Melee . | . . . . . Ramming . | . . . . . Kinetic 2622 | 68 956 1598 . . Thermal . | . . . . . Explosive 1752 | . . 777 427 548 Electromagnetic . | . . . . . Impact . | . . . . . Slashing . | . . . . . Piercing . | . . . . . Highest Corruption 1 | . . . . 1 Average Corruption 1 | . . . . 1 Corruption Purged . | . . . . . Corruption Blocked . | . . . . . Effects 3 | . . . . 3 Message Errors 1 | . . . . 1 Data Loss (minor) 1 | . . . . 1 Data Loss (major) 1 | . . . . 1 Overload Shots . | . . . . . Overflow Damage 154 | . 6 113 . 35 Projectiles 75 | . 6 69 . . Explosions 79 | . . 44 . 35 Melee . | . . . . . Knockbacks 30 | . 8 22 . . Impact . | . . . . . Kinetic 29 | . 8 21 . . Secondary 1 | . . 1 . . Self-Inflicted Damage 241 | . . 212 . 29 Shots 8 | . . 6 . 2 Rammed . | . . . . . Targets Rammed . | . . . . . Kicked . | . . . . . Crushed . | . . . . . Highest Temperature 108 | . 108 24 18 20 Average Temperature 14 | . 31 6 7 6 Received Heat Transfer 1086 | . 216 39 . 831 Siege Activations . | . . . . . Martial Activations . | . . . . . Shielding Activations . | . . . . . Robots Disrupted . | . . . . . Combat Hostiles . | . . . . . Robots Corrupted . | . . . . . Combat Hostiles . | . . . . . Parts Fried . | . . . . . Impact Corruptions . | . . . . . Robots Melted . | . . . . . Combat Hostiles . | . . . . . Parts Melted . | . . . . . Heat Transferred . | . . . . . Parts Sabotaged . | . . . . . Parts Stolen . | . . . . . Parts Stripped . | . . . . . Power Chain Reactions . | . . . . . Alert | -11 -10 -9 -8 -7 ------- Run | Yrd Mat Mat Mat Fac Maximum Alert Level 1 | . 1 1 1 . Low Security (%) 69 | 100 67 49 63 100 Level 1 30 | . 32 50 36 . Level 2 . | . . . . . Level 3 . | . . . . . Level 4 . | . . . . . Level 5 . | . . . . . High Security . | . . . . . Max Security . | . . . . . Peak Influence 350 | 5 275 350 347 153 Initial 153 | . . 104 136 153 Average 143 | . 105 215 187 69 Influence Increases 1568 | 5 432 672 301 158 Destroy 0b10 Robot/C 720 | . 280 280 100 60 Destroy 0b10 Robot/NC 175 | 5 40 95 15 20 Destroy Leader 196 | . 64 80 22 30 Disable Machine 105 | . . 15 75 15 Destroy Structure 282 | . 3 157 89 33 Partial Spotted 15 | . . 15 . . Lose Combat Pursuer 75 | . 45 30 . . Influence Decreases 1568 | 5 183 597 288 495 Entered New Map 517 | . . 145 188 184 Time Decay 1026 | 5 183 452 100 286 Lost Part 25 | . . . . 25 Squads Dispatched 6 | . 3 1 1 1 Investigation 2 | . 1 . 1 . Extermination 1 | . . . . 1 Reinforcement 3 | . 2 1 . . Assault . | . . . . . Garrison . | . . . . . Intercept . | . . . . . Searches Triggered . | . . . . . Construction Impeded 1 | . . 1 . . Haulers Reinforced . | . . . . . Active Scanning Responses . | . . . . . Cargo Convoy Interrupts . | . . . . . Stealth | -11 -10 -9 -8 -7 --------- Run | Yrd Mat Mat Mat Fac Distress Signals 4 | . 2 1 . 1 Communications Jammed . | . . . . . Distress Signals . | . . . . . Times Spotted 66 | . 26 19 5 16 Peak Tracking Total 7 | . 7 4 3 4 Tactical Retreats 8 | . 2 2 . 4 ECM-based Alert Blocks 10 | . . . . 10 Traps | -11 -10 -9 -8 -7 ------- Run | Yrd Mat Mat Mat Fac Traps Triggered 2 | . 1 . 1 . Indirectly . | . . . . . Trap Hack Attempts . | . . . . . Triggered . | . . . . . Disarmed . | . . . . . Reprogrammed . | . . . . . Reused . | . . . . . Traps Extracted . | . . . . . Installed . | . . . . . Triggered . | . . . . . Machines | -11 -10 -9 -8 -7 ---------- Run | Yrd Mat Mat Mat Fac Machines Disabled 7 | . . 1 5 1 Max in Single Turn 2 | . . 1 2 1 Machines Repaired . | . . . . . Machines Dismantled . | . . . . . Machines Sabotaged . | . . . . . Overloaded Fab Kills . | . . . . . Hacking | -11 -10 -9 -8 -7 --------- Run | Yrd Mat Mat Mat Fac Machines Accessed . | . . . . . Terminals . | . . . . . Fabricators . | . . . . . Repair Stations . | . . . . . Recycling Units . | . . . . . Scanalyzers . | . . . . . Garrison Access . | . . . . . Total Hacks . | . . . . . Successful . | . . . . . Failed . | . . . . . Catastrophic . | . . . . . Database Lockouts . | . . . . . Manual . | . . . . . Terminals . | . . . . . Fabricators . | . . . . . Repair Stations . | . . . . . Recycling Units . | . . . . . Scanalyzers . | . . . . . Garrison Access . | . . . . . Terminal Hacks . | . . . . . Fabricator Hacks . | . . . . . Repair Station Hacks . | . . . . . Recycling Unit Hacks . | . . . . . Scanalyzer . | . . . . . Garrison Access Hacks . | . . . . . Unauthorized Hacks . | . . . . . Terminals . | . . . . . Fabricators . | . . . . . Repair Stations . | . . . . . Recycling Units . | . . . . . Scanalyzers . | . . . . . Garrison Access . | . . . . . Data Cores Recovered . | . . . . . Used . | . . . . . Hacking Detections . | . . . . . Full Trace Events . | . . . . . Feedback Events . | . . . . . Feedback Blocked . | . . . . . Robot Schematics Acquired . | . . . . . Robots Built . | . . . . . Authchips . | . . . . . Time . | . . . . . Total Robot Build Rating . | . . . . . Part Schematics Acquired . | . . . . . Parts Built . | . . . . . Authchips . | . . . . . Time . | . . . . . Total Part Build Rating . | . . . . . Part Studies Acquired . | . . . . . Parts Repaired . | . . . . . Time . | . . . . . Parts Recycled . | . . . . . Recycled Matter . | . . . . . Retrieved Matter . | . . . . . Retrieved Components . | . . . . . Parts Scanalyzed . | . . . . . Part Schematics Acquired . | . . . . . Parts Damaged . | . . . . . Bothacking | -11 -10 -9 -8 -7 ------------ Run | Yrd Mat Mat Mat Fac Used RIF Installer . | . . . . . Robots Hacked . | . . . . . Non-combat . | . . . . . Combat . | . . . . . Robot Hacks Applied . | . . . . . Relay Couplers Released . | . . . . . Fabnet Peak Effective % . | . . . . . Robots Rewired . | . . . . . Allies Hacked . | . . . . . Hacks Repelled . | . . . . . Allies | -11 -10 -9 -8 -7 -------- Run | Yrd Mat Mat Mat Fac Total Allies . | . . . . . Largest Group . | . . . . . Highest-Rated Group . | . . . . . Highest-Rated Ally . | . . . . . Total Orders . | . . . . . Ally Attacks . | . . . . . Total Damage . | . . . . . Kills . | . . . . . Allies Corrupted . | . . . . . Allies Melted . | . . . . . Intel | -11 -10 -9 -8 -7 ------- Run | Yrd Mat Mat Mat Fac Active Infowar (turns) 801 | . . . 68 733 Machine Analysis 801 | . . . 68 733 ECM 131 | . . . . 131 Robot Analysis Total . | . . . . . Derelict Logs Recovered . | . . . . . Drone Launches . | . . . . . Drone Recoveries . | . . . . . Exploration | -11 -10 -9 -8 -7 ------------- Run | Yrd Mat Mat Mat Fac Turns Passed 2717 | 127 508 1137 212 733 Spaces Moved 1455 | 83 223 551 136 462 Core 14 | 11 2 1 . . Treads 426 | . 142 284 . . Legs 1015 | 72 79 266 136 462 Wheels . | . . . . . Hover . | . . . . . Flight . | . . . . . Fastest Speed 50 | 50 120 130 130 130 Average Speed 139 | 110 147 147 130 134 Slowest Speed 900 | 120 300 900 130 270 Overloaded Moves . | . . . . . Propulsion Burnouts . | . . . . . Robots Hopped . | . . . . . Potential Cave-ins . | . . . . . Cave-ins Triggered . | . . . . . Exploration Rate (%) 21 | 6 38 30 20 14 Regions Visited 4 Branch Regions . Pre-discovered Areas . | . . . . . Known Exits Taken . | . . . . . Unknown Exits Taken 4 | 1 1 1 1 . Scrap Searched . | . . . . . Spaces Dug 66 | . . 42 17 7 Terrain Destroyed 373 | . 2 212 127 32 Melee . | . . . . . Projectile 7 | . 2 5 . . AOE 366 | . . 207 127 32 Terrain Rammed . | . . . . . Walls Destroyed . | . . . . . Machines Disabled . | . . . . . Actions | -11 -10 -9 -8 -7 --------- Run | Yrd Mat Mat Mat Fac Total 1892 | 109 328 725 162 568 Wait 107 | . 2 36 2 67 Move 1451 | 82 222 550 135 462 Hop . | . . . . . Pick Up 88 | 13 22 31 8 14 Fast Attach . | . . . . . Attach 41 | 7 13 10 4 7 Detach 3 | 1 2 . . . Swap 5 | . 2 2 1 . Drop 55 | . 20 17 6 12 Fire 142 | 6 45 79 6 6 Melee . | . . . . . Ram . | . . . . . Kick . | . . . . . Crush . | . . . . . Escape Stasis . | . . . . . Rewire . | . . . . . Trap . | . . . . . Miscellaneous . | . . . . . Route ------- -11/Scrapyard -10/Materials -9/Materials -8/Materials -7/Factory History --------- Turn | Location | Event 34 | -11/Scrapyard | Discovered new exit (range 13) 128 | -11/Scrapyard | Entered Materials 332 | -10/Materials | Build established: Mutant 482 | -10/Materials | Core integrity fell below 50% 622 | -10/Materials | Discovered new exit (range 10) 636 | -10/Materials | Entered another Materials area 636 | -9/Materials | Evolved 2 slots: Propulsion x2 1731 | -9/Materials | Discovered new exit (range 11) 1773 | -9/Materials | Entered another Materials area 1773 | -8/Materials | Evolved 2 slots: Power x1, Utility x1 1978 | -8/Materials | Discovered new exit (range 7) 1985 | -8/Materials | Entered Factory 1985 | -7/Factory | Evolved 2 slots: Utility x2 2706 | -7/Factory | Core integrity fell below 50% 2713 | -7/Factory | Core integrity fell below 20% 2718 | -7/Factory | Destroyed by G-47 Trooper with Particle Gun Last Messages --------------- 02639_ Mni. Grenade Launcher destroyed. 02641_ Titanium Leg destroyed. 02643_ Hrd. Medium Armor Plating destroyed. 02645_ Y-54 Guardian suffers critical hit (Burn). 02667_ Titanium Leg destroyed. 02697_ Imp. Targeting Computer destroyed. 02702_ Mic. Nuclear Core destroyed. 02702_ Imp. Titanium Leg destroyed. 02702_ Mic. Nuclear Core destroyed. Your per-turn energy upkeep is currently significantly in the negative, which may be okay for now but be prepared to manage it more closely. 02704_ Critical hit (Burn: +37). 02706_ Mni. Grenade Launcher destroyed. 02708_ System corrupted: Substantial component data lost. 02712_ Adv. ECM Suite destroyed. 02713_ Critical hit (Burn: +37). Map ----- +----------------------------------------------------+ | ???????????????? #?????????????????????????????? | | ???????????????# #?????????????????????????????? | | ???????????????# #?????????????????????????????? | | ???????????????+ #?????????????????????????????? | | ############???# #?????????????????????????????? | | T #???# #?????????????????????????????? | | #???# #?????????????????????????????? | | #???# #########?????????????????????? | | """"""""" ##### + ??????????????????????? | | / #?????????????????????????????# | | """"""""" ##### #?????????????????????????????# | | #???# #?????????????????????????????# | | """"""""" #???# #?????????????????????????????# | | #???# #?????????????????????????????# | | """"""""" #???# #?????????????????????????????# | | #???# #??###########?###########????# | | #???# #??# #?# #????# | | #####+########## #### #?# #????# | | # =[ #?# #????# | | # [ #?# #????# | | # #?# ==== #????? | | "" # #?# =/= #????? | | "" # =#?# = #????? | | "" ###/##### # #?# [ #????? | | "" "" # ## ###/#############+########## | | "" F" # """ ## g @ | | " # """ ## Y | | "" #] """ ## uYg | | # ## k k | | # ## k k | | #########] #################+####### T######## | | ????????# "" #??????????# ####?????# | | ????????# "" #??????????# #????????# | | ????????# """ #??????????# """" """" #????????# | | """?????# """ #??????????# """" """" #????????# | | """?????# """ #??????????# """" """" #????????# | | """?????# #??????????+ """" """" #????????# | | ????????########??????????#?"""" """" #????????# | | """?????????????????????????"""" """"? #????????# | | """??????????????????????????? ??????????????# | | """??????????????????????????? ??????????????# | | ?????????????????????????????? ???????????????? | | ??????????????????????????????? ???????????????? | | ???????????????????????????????###???????????????? | | ?????????????????????????""""????????????????????? | | ?????????????????????????""R"????????????????????? | | ?????????????????????????""?"????????????????????? | | ????????????????????????????????????????????"""??? | | ????????????????????????????????????????????"T"??? | | ?????????????????????????????????????????????????? | +----------------------------------------------------+ Best States ------------- Heat Dissipation 48 Energy Generation 25 Energy Capacity 325 Matter Stores 300 Matter Capacity 300 Sight Range 16 Terrain Scan Density 85 ECM Strength 2 Armor Coverage 225 Evasion (%) 55 Targeting Accuracy 11 Recoil Reduction 4 Item Schematics ----------------- None Robot Schematics ------------------ None Fabricated ------------ Nothing Repaired ---------- Nothing Studied --------- None Alien Tech Used ----------------- None Achievements -------------- Bumper Bots Hey, That's Mine! Oops Challenges ------------ None Game ------ Seed FortressPrecisionFilter Manual? 0 Play Time 00:48:02 Cumulative 3.7 hours Start 2026.01.12 @ 10:03:26 End 2026.01.12 @ 10:57:00 Sessions 1 Manual Loads 0 Difficulty Rogue Special Mode None Game No. 5 Rogue 5 Adventurer 0 Explorer 0 Win Type - Total 0 Types 0/0/0/0/0/0/0/0/0/0 Lore% 0 Gallery% 6 Achievement% 6 Wizard Run 0 Options --------- Layout 1 ASCII 0 Keyboard 0 Movement Numpad Keybinds 0 Fullscreen 2 Font 24/Smallcaps Map View 50x35 Zoom Use 0% Tactical HUD 1 Map Filters NONE Filters NONE Steam 1 RUN: e3d16408-a0d0-4444-be7d-d661dd6f7286